[Event "Late-Titled-Tuesday-Blitz-January-16-2024"]
[Site "Chess.com"]
[Date "2024.01.16"]
[Round "10"]
[White "vladislavkovalev"]
[Black "ChristopherYoo"]
[Result "0-1"]
[WhiteElo "2838"]
[BlackElo "2987"]
[TimeControl "180+1"]
[EndTime "15:57:02 PST"]
[Termination "ChristopherYoo won on time"]

1. e4 {[%clk 0:03:00.9]} 1... e5 {[%clk 0:02:59.6]} 2. Nf3 {[%clk 0:03:01.5]}
2... Nc6 {[%clk 0:03:00.1]} 3. Bb5 {[%clk 0:03:02]} 3... Nf6 {[%clk 0:03:00.3]}
4. O-O {[%clk 0:03:02]} 4... Nxe4 {[%clk 0:03:00.2]} 5. Re1 {[%clk 0:03:02.7]}
5... Nd6 {[%clk 0:02:59.4]} 6. Nxe5 {[%clk 0:03:03.3]} 6... Be7 {[%clk
0:02:59.8]} 7. Bf1 {[%clk 0:03:03.8]} 7... Nxe5 {[%clk 0:02:59.7]} 8. Rxe5
{[%clk 0:03:04.7]} 8... O-O {[%clk 0:02:59.9]} 9. d4 {[%clk 0:03:05.5]} 9... Bf6
{[%clk 0:03:00.2]} 10. Re1 {[%clk 0:03:06.2]} 10... Re8 {[%clk 0:03:00.6]} 11.
c3 {[%clk 0:03:03.7]} 11... Rxe1 {[%clk 0:02:58.4]} 12. Qxe1 {[%clk 0:03:04.6]}
12... Nf5 {[%clk 0:02:56.5]} 13. a4 {[%clk 0:03:02.6]} 13... a5 {[%clk
0:02:54.6]} 14. Bf4 {[%clk 0:03:02.3]} 14... d5 {[%clk 0:02:54.3]} 15. Bxc7
{[%clk 0:03:00.8]} 15... Qf8 {[%clk 0:02:51.8]} 16. Nd2 {[%clk 0:02:50.4]} 16...
Bd8 {[%clk 0:02:24.4]} 17. Bxd8 {[%clk 0:02:48.2]} 17... Qxd8 {[%clk 0:02:25.3]}
18. Nf3 {[%clk 0:02:35]} 18... Be6 {[%clk 0:02:19.6]} 19. Qd2 {[%clk 0:02:30]}
19... Nd6 {[%clk 0:02:15.9]} 20. Re1 {[%clk 0:02:29.5]} 20... Qb6 {[%clk
0:02:00.3]} 21. Ne5 {[%clk 0:02:21.4]} 21... Ne4 {[%clk 0:01:52.1]} 22. Qc2
{[%clk 0:02:16.6]} 22... f6 {[%clk 0:01:52.1]} 23. Nd3 {[%clk 0:02:13.9]} 23...
Rc8 {[%clk 0:01:50.3]} 24. Qe2 {[%clk 0:02:00.5]} 24... Bf7 {[%clk 0:01:49.1]}
25. f3 {[%clk 0:01:57.9]} 25... Nd6 {[%clk 0:01:48.4]} 26. Qf2 {[%clk
0:01:09.7]} 26... Qc7 {[%clk 0:01:42.7]} 27. Nc5 {[%clk 0:01:03.3]} 27... b6
{[%clk 0:01:40.8]} 28. Ne6 {[%clk 0:01:04]} 28... Qd7 {[%clk 0:01:37.6]} 29. Nf4
{[%clk 0:01:04.2]} 29... Qxa4 {[%clk 0:01:35.8]} 30. h4 {[%clk 0:01:00.3]} 30...
Re8 {[%clk 0:01:28.6]} 31. Bd3 {[%clk 0:00:49]} 31... g6 {[%clk 0:01:22.8]} 32.
g4 {[%clk 0:00:45.5]} 32... Qd7 {[%clk 0:01:11.7]} 33. Kg2 {[%clk 0:00:42.5]}
33... a4 {[%clk 0:01:06.8]} 34. Rxe8+ {[%clk 0:00:34.9]} 34... Qxe8 {[%clk
0:01:07.7]} 35. Qe2 {[%clk 0:00:33.1]} 35... Qxe2+ {[%clk 0:01:01.2]} 36. Bxe2
{[%clk 0:00:34]} 36... g5 {[%clk 0:00:59.9]} 37. hxg5 {[%clk 0:00:31.8]} 37...
fxg5 {[%clk 0:01:00.8]} 38. Nh3 {[%clk 0:00:31.9]} 38... h6 {[%clk 0:01:00]} 39.
Kf2 {[%clk 0:00:30.6]} 39... Kg7 {[%clk 0:00:55.1]} 40. Ke3 {[%clk 0:00:30.9]}
40... Kf6 {[%clk 0:00:53.6]} 41. Nf2 {[%clk 0:00:30.1]} 41... h5 {[%clk
0:00:51.5]} 42. f4 {[%clk 0:00:18.6]} 42... h4 {[%clk 0:00:46.3]} 43. fxg5+
{[%clk 0:00:12.4]} 43... Kxg5 {[%clk 0:00:46]} 44. Nh3+ {[%clk 0:00:13.2]} 44...
Kf6 {[%clk 0:00:45.7]} 45. Kf4 {[%clk 0:00:13.6]} 45... Be6 {[%clk 0:00:43.3]}
46. Ng5 {[%clk 0:00:10.5]} 46... Bd7 {[%clk 0:00:42.4]} 47. Nf3 {[%clk
0:00:10.9]} 47... h3 {[%clk 0:00:42.8]} 48. Kg3 {[%clk 0:00:06.7]} 48... Ne4+
{[%clk 0:00:40.2]} 49. Kxh3 {[%clk 0:00:06.5]} 49... Nxc3 {[%clk 0:00:39.4]} 50.
Bd3 {[%clk 0:00:01.4]} 50... Nd1 {[%clk 0:00:38.9]} 51. Kg3 {[%clk 0:00:01.1]}
51... Nxb2 {[%clk 0:00:39.3]} 52. Bb1 {[%clk 0:00:01.7]} 52... a3 {[%clk
0:00:38.4]} 53. g5+ {[%clk 0:00:02.3]} 53... Kg7 {[%clk 0:00:38.5]} 54. Kf4
{[%clk 0:00:02.8]} 54... Nd3+ {[%clk 0:00:34.8]} 55. Ke3 {[%clk 0:00:02.3]}
55... Nb4 {[%clk 0:00:35.5]} 56. Ne5 {[%clk 0:00:01.5]} 56... Bf5 {[%clk
0:00:35.2]} 57. Bxf5 {[%clk 0:00:01.2]} 57... a2 {[%clk 0:00:35.7]} 0-1

[Event "Late-Titled-Tuesday-Blitz-January-16-2024"]
[Site "Chess.com"]
[Date "2024.01.16"]
[Round "10"]
[White "campochess"]
[Black "Kostukov_Alex"]
[Result "1-0"]
[WhiteElo "2148"]
[BlackElo "2288"]
[TimeControl "180+1"]
[EndTime "15:57:04 PST"]
[Termination "campochess won by checkmate"]

1. e4 {[%clk 0:02:57.8]} 1... c5 {[%clk 0:02:59.6]} 2. c3 {[%clk 0:02:56.4]}
2... g6 {[%clk 0:02:59.9]} 3. d4 {[%clk 0:02:55.5]} 3... cxd4 {[%clk 0:03:00.8]}
4. cxd4 {[%clk 0:02:55.1]} 4... d5 {[%clk 0:03:01.3]} 5. exd5 {[%clk 0:02:54.1]}
5... Nf6 {[%clk 0:03:01.2]} 6. Nc3 {[%clk 0:02:51.9]} 6... Nxd5 {[%clk
0:03:01.1]} 7. Bc4 {[%clk 0:02:50.6]} 7... Nb6 {[%clk 0:03:01.4]} 8. Bb5+ {[%clk
0:02:48.3]} 8... N8d7 {[%clk 0:02:59.6]} 9. Nf3 {[%clk 0:02:47.9]} 9... Bg7
{[%clk 0:02:59.8]} 10. Be3 {[%clk 0:02:46.5]} 10... O-O {[%clk 0:02:59.8]} 11.
O-O {[%clk 0:02:45]} 11... Nf6 {[%clk 0:02:59.4]} 12. h3 {[%clk 0:02:37.5]}
12... a6 {[%clk 0:02:54.1]} 13. Be2 {[%clk 0:02:36]} 13... Nfd5 {[%clk
0:02:45.8]} 14. Ne4 {[%clk 0:02:33.7]} 14... Nxe3 {[%clk 0:02:45.5]} 15. fxe3
{[%clk 0:02:33.2]} 15... Nd5 {[%clk 0:02:41.4]} 16. Qb3 {[%clk 0:02:03.3]} 16...
Bh6 {[%clk 0:02:37.4]} 17. Nfg5 {[%clk 0:01:54.6]} 17... e6 {[%clk 0:01:50.2]}
18. h4 {[%clk 0:01:37.3]} 18... f5 {[%clk 0:01:33.1]} 19. Nc5 {[%clk 0:01:26.8]}
19... Bxg5 {[%clk 0:01:30.3]} 20. hxg5 {[%clk 0:01:25.6]} 20... Qxg5 {[%clk
0:01:31.2]} 21. Rf3 {[%clk 0:01:25.2]} 21... Kh8 {[%clk 0:01:05]} 22. Bc4 {[%clk
0:01:22.8]} 22... Nf6 {[%clk 0:00:51.7]} 23. Bxe6 {[%clk 0:01:19.2]} 23... Ng4
{[%clk 0:00:47.4]} 24. Qc3 {[%clk 0:01:02.4]} 24... h5 {[%clk 0:00:23.2]} 25.
Raf1 {[%clk 0:00:59.9]} 25... Qe7 {[%clk 0:00:12.4]} 26. d5+ {[%clk 0:00:57]}
26... Kh7 {[%clk 0:00:12.6]} 27. e4 {[%clk 0:00:50.4]} 27... Bxe6 {[%clk
0:00:09.4]} 28. Nxe6 {[%clk 0:00:49.6]} 28... Rac8 {[%clk 0:00:09.6]} 29. Qd2
{[%clk 0:00:44.3]} 29... Rf6 {[%clk 0:00:06.7]} 30. exf5 {[%clk 0:00:34.4]}
30... gxf5 {[%clk 0:00:04.6]} 31. Rxf5 {[%clk 0:00:33.3]} 31... Rxf5 {[%clk
0:00:04.2]} 32. Rxf5 {[%clk 0:00:32.9]} 32... Rg8 {[%clk 0:00:03]} 33. Rxh5+
{[%clk 0:00:31.2]} 33... Kg6 {[%clk 0:00:03.1]} 34. Rg5+ {[%clk 0:00:28.6]}
34... Kf7 {[%clk 0:00:02.3]} 35. Qf4+ {[%clk 0:00:27.3]} 35... Nf6 {[%clk
0:00:01.4]} 36. Rf5 {[%clk 0:00:22.5]} 36... Rg6 {[%clk 0:00:01.3]} 37. Ng5+
{[%clk 0:00:19.6]} 37... Kg7 {[%clk 0:00:01.5]} 38. Nf3 {[%clk 0:00:17.3]} 38...
Qe1+ {[%clk 0:00:02.2]} 39. Nxe1 {[%clk 0:00:12.7]} 39... Kf7 {[%clk 0:00:02.5]}
40. Qc7+ {[%clk 0:00:10.5]} 40... Kg8 {[%clk 0:00:01.9]} 41. Nf3 {[%clk
0:00:09.8]} 41... Rg7 {[%clk 0:00:01.7]} 42. Qe5 {[%clk 0:00:08.8]} 42... Kf7
{[%clk 0:00:01.7]} 43. Rxf6+ {[%clk 0:00:07.4]} 43... Kg8 {[%clk 0:00:02.6]} 44.
Qe8+ {[%clk 0:00:07.4]} 44... Kh7 {[%clk 0:00:03.5]} 45. Qh5+ {[%clk 0:00:07.1]}
45... Kg8 {[%clk 0:00:03.9]} 46. Ng5 {[%clk 0:00:06.8]} 46... b5 {[%clk
0:00:03.7]} 47. Qe8# {[%clk 0:00:06.3]} 1-0

[Event "Late-Titled-Tuesday-Blitz-January-16-2024"]
[Site "Chess.com"]
[Date "2024.01.16"]
[Round "10"]
[White "BardArtem"]
[Black "Goryachkina"]
[Result "1-0"]
[WhiteElo "2816"]
[BlackElo "2687"]
[TimeControl "180+1"]
[EndTime "15:57:06 PST"]
[Termination "BardArtem won on time"]

1. e4 {[%clk 0:02:55.4]} 1... c5 {[%clk 0:02:59.9]} 2. a3 {[%clk 0:02:50.4]}
2... b6 {[%clk 0:02:56.2]} 3. b4 {[%clk 0:02:49.5]} 3... Bb7 {[%clk 0:02:55.5]}
4. Nc3 {[%clk 0:02:47.3]} 4... e6 {[%clk 0:02:54.2]} 5. bxc5 {[%clk 0:02:45]}
5... Bxc5 {[%clk 0:02:49.2]} 6. d4 {[%clk 0:02:44.4]} 6... Be7 {[%clk
0:02:49.1]} 7. Nf3 {[%clk 0:02:44.2]} 7... Nf6 {[%clk 0:02:45.8]} 8. Bd3 {[%clk
0:02:43.5]} 8... d5 {[%clk 0:02:42]} 9. e5 {[%clk 0:02:39.3]} 9... Ne4 {[%clk
0:02:42]} 10. Ne2 {[%clk 0:02:37]} 10... O-O {[%clk 0:02:39.1]} 11. O-O {[%clk
0:02:34.1]} 11... Nd7 {[%clk 0:02:35.8]} 12. Bb2 {[%clk 0:02:26.1]} 12... Qe8
{[%clk 0:02:23.5]} 13. Ne1 {[%clk 0:02:19.2]} 13... f6 {[%clk 0:02:19.4]} 14. f3
{[%clk 0:02:16.2]} 14... Ng5 {[%clk 0:02:19.1]} 15. h4 {[%clk 0:02:16.2]} 15...
Nf7 {[%clk 0:02:18.7]} 16. f4 {[%clk 0:02:16.8]} 16... fxe5 {[%clk 0:02:09.3]}
17. fxe5 {[%clk 0:02:17.7]} 17... Bxh4 {[%clk 0:02:09]} 18. Nf3 {[%clk
0:02:16.5]} 18... Be7 {[%clk 0:01:50.1]} 19. Nf4 {[%clk 0:02:14.8]} 19... Ng5
{[%clk 0:01:46.1]} 20. Nxg5 {[%clk 0:01:41.5]} 20... Bxg5 {[%clk 0:01:47]} 21.
Qg4 {[%clk 0:01:36]} 21... Bxf4 {[%clk 0:01:43.7]} 22. Rxf4 {[%clk 0:01:36.9]}
22... Rxf4 {[%clk 0:01:43.9]} 23. Qxf4 {[%clk 0:01:37.8]} 23... Qe7 {[%clk
0:01:43.9]} 24. Bc3 {[%clk 0:01:33.9]} 24... a5 {[%clk 0:01:37.8]} 25. Bd2
{[%clk 0:01:27.1]} 25... Ba6 {[%clk 0:01:34.8]} 26. Bxa6 {[%clk 0:01:19.4]}
26... Rxa6 {[%clk 0:01:34.9]} 27. c4 {[%clk 0:01:07.1]} 27... dxc4 {[%clk
0:01:26.1]} 28. Qe4 {[%clk 0:01:06.1]} 28... Nf8 {[%clk 0:00:56.5]} 29. Rf1
{[%clk 0:01:03.2]} 29... Ra7 {[%clk 0:00:43.9]} 30. Qc6 {[%clk 0:00:49.9]} 30...
Qd8 {[%clk 0:00:28.2]} 31. d5 {[%clk 0:00:34.8]} 31... exd5 {[%clk 0:00:11.8]}
32. e6 {[%clk 0:00:34.4]} 32... Re7 {[%clk 0:00:07.3]} 33. Bg5 {[%clk
0:00:18.3]} 33... h6 {[%clk 0:00:06.2]} 34. Bxe7 {[%clk 0:00:13.4]} 34... Qxe7
{[%clk 0:00:06.5]} 35. Rf7 {[%clk 0:00:14]} 35... Qg5 {[%clk 0:00:03.4]} 36. Qe8
{[%clk 0:00:04.4]} 36... Qe3+ {[%clk 0:00:03]} 37. Rf2 {[%clk 0:00:02]} 37...
Qe1+ {[%clk 0:00:02.9]} 38. Rf1 {[%clk 0:00:02.6]} 38... Qe3+ {[%clk 0:00:03]}
39. Kh1 {[%clk 0:00:03.3]} 39... Kh7 {[%clk 0:00:01.6]} 40. e7 {[%clk
0:00:02.6]} 40... Ng6 {[%clk 0:00:01.2]} 41. Qf7 {[%clk 0:00:02.4]} 1-0

[Event "Late-Titled-Tuesday-Blitz-January-16-2024"]
[Site "Chess.com"]
[Date "2024.01.16"]
[Round "10"]
[White "laskakid"]
[Black "TheMagician"]
[Result "1-0"]
[WhiteElo "2320"]
[BlackElo "2165"]
[TimeControl "180+1"]
[EndTime "15:57:08 PST"]
[Termination "laskakid won on time"]

1. d4 {[%clk 0:03:00.9]} 1... Nf6 {[%clk 0:02:59.4]} 2. c4 {[%clk 0:03:01]} 2...
g6 {[%clk 0:02:57.5]} 3. Nc3 {[%clk 0:03:00.9]} 3... d5 {[%clk 0:02:58.1]} 4.
Nf3 {[%clk 0:03:00.3]} 4... Bg7 {[%clk 0:02:57.8]} 5. Bg5 {[%clk 0:03:00.2]}
5... Ne4 {[%clk 0:02:57.5]} 6. Bf4 {[%clk 0:02:59.4]} 6... c6 {[%clk 0:02:50.7]}
7. e3 {[%clk 0:02:57.3]} 7... O-O {[%clk 0:02:47.6]} 8. Qb3 {[%clk 0:02:54.6]}
8... dxc4 {[%clk 0:02:40]} 9. Bxc4 {[%clk 0:02:51.9]} 9... Nd6 {[%clk
0:02:38.6]} 10. Be2 {[%clk 0:02:46.9]} 10... Be6 {[%clk 0:02:38.2]} 11. Qc2
{[%clk 0:02:44.8]} 11... a5 {[%clk 0:02:32.4]} 12. O-O {[%clk 0:02:44]} 12...
Na6 {[%clk 0:02:32.3]} 13. e4 {[%clk 0:02:31.7]} 13... Bg4 {[%clk 0:02:15.9]}
14. Rad1 {[%clk 0:02:24]} 14... Rc8 {[%clk 0:02:07]} 15. h3 {[%clk 0:02:19.4]}
15... Be6 {[%clk 0:01:55.1]} 16. Rfe1 {[%clk 0:02:10.3]} 16... Bc4 {[%clk
0:01:36.3]} 17. Bxc4 {[%clk 0:01:43.8]} 17... Nxc4 {[%clk 0:01:35.2]} 18. Qb3
{[%clk 0:01:37.2]} 18... b5 {[%clk 0:01:31.6]} 19. a4 {[%clk 0:01:32.6]} 19...
Nc7 {[%clk 0:00:56.9]} 20. axb5 {[%clk 0:01:16.2]} 20... cxb5 {[%clk 0:00:55.2]}
21. Nxb5 {[%clk 0:01:14.2]} 21... Nxb5 {[%clk 0:00:45.7]} 22. Qxb5 {[%clk
0:01:14.1]} 22... Qe8 {[%clk 0:00:38.8]} 23. Qxe8 {[%clk 0:01:08.1]} 23... Rfxe8
{[%clk 0:00:38.6]} 24. b3 {[%clk 0:01:08.2]} 24... Nb6 {[%clk 0:00:28.4]} 25.
Rc1 {[%clk 0:01:06.1]} 25... a4 {[%clk 0:00:27.4]} 26. bxa4 {[%clk 0:01:01.7]}
26... Nxa4 {[%clk 0:00:27.4]} 27. d5 {[%clk 0:01:00.9]} 27... Nc3 {[%clk
0:00:21.1]} 28. Kf1 {[%clk 0:00:54.2]} 28... f5 {[%clk 0:00:20.2]} 29. exf5
{[%clk 0:00:52.2]} 29... Nxd5 {[%clk 0:00:18.1]} 30. Rxc8 {[%clk 0:00:45.9]}
30... Rxc8 {[%clk 0:00:18.1]} 31. Bg5 {[%clk 0:00:45.2]} 31... gxf5 {[%clk
0:00:17.5]} 32. Bxe7 {[%clk 0:00:45.1]} 32... Nxe7 {[%clk 0:00:15.2]} 33. Rxe7
{[%clk 0:00:45]} 33... Bf6 {[%clk 0:00:15]} 34. Re6 {[%clk 0:00:42.8]} 34... Kf7
{[%clk 0:00:14.4]} 35. Re1 {[%clk 0:00:41.3]} 35... Rc7 {[%clk 0:00:14.7]} 36.
g3 {[%clk 0:00:41.3]} 36... Ra7 {[%clk 0:00:14.6]} 37. Kg2 {[%clk 0:00:40.9]}
37... h6 {[%clk 0:00:15.1]} 38. Rb1 {[%clk 0:00:38.4]} 38... Rc7 {[%clk
0:00:14.4]} 39. Rb5 {[%clk 0:00:38.1]} 39... Kg6 {[%clk 0:00:12.4]} 40. Rb6
{[%clk 0:00:37.8]} 40... Kf7 {[%clk 0:00:11.8]} 41. Rb5 {[%clk 0:00:37.7]} 41...
Kg6 {[%clk 0:00:12]} 42. h4 {[%clk 0:00:38]} 42... Ra7 {[%clk 0:00:09.8]} 43.
h5+ {[%clk 0:00:35.8]} 43... Kxh5 {[%clk 0:00:10.1]} 44. Rxf5+ {[%clk
0:00:35.3]} 44... Kg6 {[%clk 0:00:10.6]} 45. Rb5 {[%clk 0:00:34.5]} 45... Ra6
{[%clk 0:00:10.3]} 46. Nh2 {[%clk 0:00:33.6]} 46... Rc6 {[%clk 0:00:09.9]} 47.
Ng4 {[%clk 0:00:33.3]} 47... Bg7 {[%clk 0:00:09.9]} 48. f4 {[%clk 0:00:29.6]}
48... h5 {[%clk 0:00:09]} 49. Ne3 {[%clk 0:00:29.3]} 49... Ra6 {[%clk
0:00:07.5]} 50. Kf3 {[%clk 0:00:29]} 50... Bd4 {[%clk 0:00:06.5]} 51. Rg5+
{[%clk 0:00:25.8]} 51... Kf6 {[%clk 0:00:01.7]} 52. Nd5+ {[%clk 0:00:23.9]}
52... Ke6 {[%clk 0:00:01.2]} 53. Rxh5 {[%clk 0:00:23.7]} 1-0

[Event "Late-Titled-Tuesday-Blitz-January-16-2024"]
[Site "Chess.com"]
[Date "2024.01.16"]
[Round "10"]
[White "vova-79"]
[Black "APOKALIPSA13"]
[Result "1-0"]
[WhiteElo "2573"]
[BlackElo "2187"]
[TimeControl "180+1"]
[EndTime "15:57:12 PST"]
[Termination "vova-79 won by resignation"]

1. d4 {[%clk 0:02:57.3]} 1... e5 {[%clk 0:03:00.2]} 2. dxe5 {[%clk 0:02:57]}
2... Nc6 {[%clk 0:03:00.6]} 3. Nf3 {[%clk 0:02:56.6]} 3... Qe7 {[%clk 0:03:01]}
4. Bf4 {[%clk 0:02:52.6]} 4... Qb4+ {[%clk 0:03:00.8]} 5. Bd2 {[%clk 0:02:25.8]}
5... Qxb2 {[%clk 0:03:00.5]} 6. Nc3 {[%clk 0:02:26.1]} 6... Bb4 {[%clk
0:02:59.6]} 7. Rb1 {[%clk 0:02:24]} 7... Qxc3 {[%clk 0:02:59.2]} 8. Bxc3 {[%clk
0:02:23.2]} 8... Bxc3+ {[%clk 0:03:00.1]} 9. Nd2 {[%clk 0:02:23.5]} 9... Bxe5
{[%clk 0:03:01]} 10. e3 {[%clk 0:02:18.9]} 10... Nf6 {[%clk 0:03:01]} 11. Bd3
{[%clk 0:02:18.7]} 11... O-O {[%clk 0:03:00.9]} 12. O-O {[%clk 0:02:18.4]} 12...
d5 {[%clk 0:03:00.1]} 13. Nf3 {[%clk 0:02:13.6]} 13... Bc3 {[%clk 0:02:59.7]}
14. Rb3 {[%clk 0:02:12.5]} 14... Ba5 {[%clk 0:02:58.3]} 15. h3 {[%clk
0:02:04.5]} 15... h6 {[%clk 0:02:41.6]} 16. Bb5 {[%clk 0:01:55.3]} 16... Ne7
{[%clk 0:02:26.2]} 17. Nd4 {[%clk 0:01:44.6]} 17... a6 {[%clk 0:02:20.3]} 18.
Be2 {[%clk 0:01:39.6]} 18... c5 {[%clk 0:02:13.6]} 19. Nf3 {[%clk 0:01:37.2]}
19... b5 {[%clk 0:02:09.5]} 20. Ne5 {[%clk 0:01:26.1]} 20... c4 {[%clk
0:02:05.1]} 21. Rb1 {[%clk 0:01:25.3]} 21... Bc3 {[%clk 0:02:04.2]} 22. f4
{[%clk 0:01:21.5]} 22... Nf5 {[%clk 0:01:55.7]} 23. Qc1 {[%clk 0:01:09.6]} 23...
Ng3 {[%clk 0:01:52.6]} 24. Bf3 {[%clk 0:01:03.3]} 24... Nfe4 {[%clk 0:01:51]}
25. Bxe4 {[%clk 0:00:55.7]} 25... Ne2+ {[%clk 0:01:49.7]} 26. Kh2 {[%clk
0:00:54.7]} 26... Nxc1 {[%clk 0:01:49.1]} 27. Bxd5 {[%clk 0:00:54.8]} 27... Ra7
{[%clk 0:01:44.4]} 28. Rbxc1 {[%clk 0:00:51.6]} 28... Be6 {[%clk 0:01:37.7]} 29.
Bxe6 {[%clk 0:00:46.8]} 29... fxe6 {[%clk 0:01:38.6]} 30. Nf3 {[%clk 0:00:47.1]}
30... Rd7 {[%clk 0:01:34.4]} 31. Rcd1 {[%clk 0:00:45.5]} 31... Rfd8 {[%clk
0:01:33.6]} 32. Rxd7 {[%clk 0:00:45.1]} 32... Rxd7 {[%clk 0:01:34.5]} 33. Kg3
{[%clk 0:00:45.3]} 33... Rd2 {[%clk 0:01:32.9]} 34. Nxd2 {[%clk 0:00:43.8]}
34... Bxd2 {[%clk 0:01:32]} 35. Kf3 {[%clk 0:00:42.9]} 35... b4 {[%clk
0:01:26.4]} 36. Rd1 {[%clk 0:00:40.2]} 36... Bc3 {[%clk 0:01:17.5]} 37. Rd8+
{[%clk 0:00:30.3]} 37... Kf7 {[%clk 0:01:17.1]} 38. Rc8 {[%clk 0:00:31.2]} 38...
a5 {[%clk 0:01:06]} 39. Rxc4 {[%clk 0:00:30.2]} 39... Kf6 {[%clk 0:01:05]} 40.
Ke4 {[%clk 0:00:28.9]} 40... g5 {[%clk 0:01:03.6]} 41. g4 {[%clk 0:00:27.7]}
41... Bd2 {[%clk 0:00:56.9]} 42. Rc6 {[%clk 0:00:23.6]} 42... Kf7 {[%clk
0:00:50.6]} 43. Ra6 {[%clk 0:00:21.3]} 43... Ke7 {[%clk 0:00:44]} 44. Rxa5
{[%clk 0:00:20.4]} 44... b3 {[%clk 0:00:42.6]} 45. Ra7+ {[%clk 0:00:19.8]} 45...
Kf6 {[%clk 0:00:41]} 46. cxb3 {[%clk 0:00:20.7]} 46... Kg6 {[%clk 0:00:36.7]}
47. Ra6 {[%clk 0:00:20.7]} 47... Kf6 {[%clk 0:00:36.4]} 48. a4 {[%clk
0:00:21.2]} 48... Bb4 {[%clk 0:00:32.3]} 49. f5 {[%clk 0:00:19.8]} 49... Kg7
{[%clk 0:00:32.2]} 50. Rxe6 {[%clk 0:00:20]} 50... h5 {[%clk 0:00:32.6]} 51. Kd5
{[%clk 0:00:18.5]} 51... hxg4 {[%clk 0:00:32.4]} 52. hxg4 {[%clk 0:00:19.4]}
52... Kf8 {[%clk 0:00:32.2]} 53. e4 {[%clk 0:00:20]} 53... Kg7 {[%clk 0:00:32]}
54. e5 {[%clk 0:00:20.1]} 54... Kf7 {[%clk 0:00:32]} 55. Rb6 {[%clk 0:00:20.6]}
55... Bd2 {[%clk 0:00:31.8]} 56. Rb7+ {[%clk 0:00:21.5]} 56... Ke8 {[%clk
0:00:30.7]} 57. Ke6 {[%clk 0:00:21]} 57... Kd8 {[%clk 0:00:30.8]} 58. Rh7 {[%clk
0:00:19.7]} 58... Kc8 {[%clk 0:00:28.9]} 59. f6 {[%clk 0:00:19.5]} 59... Bb4
{[%clk 0:00:28.6]} 60. Kf5 {[%clk 0:00:15.3]} 1-0

[Event "Late-Titled-Tuesday-Blitz-January-16-2024"]
[Site "Chess.com"]
[Date "2024.01.16"]
[Round "10"]
[White "FredddieCroderg"]
[Black "thesupera12"]
[Result "1-0"]
[WhiteElo "2378"]
[BlackElo "2502"]
[TimeControl "180+1"]
[EndTime "15:57:13 PST"]
[Termination "FredddieCroderg won by checkmate"]

1. e4 {[%clk 0:02:55.2]} 1... b6 {[%clk 0:02:59.8]} 2. d4 {[%clk 0:02:53]} 2...
Bb7 {[%clk 0:03:00.4]} 3. Bd3 {[%clk 0:02:52.8]} 3... e6 {[%clk 0:03:00.4]} 4.
Qe2 {[%clk 0:02:52.1]} 4... c5 {[%clk 0:03:01]} 5. c3 {[%clk 0:02:51.4]} 5...
cxd4 {[%clk 0:03:01]} 6. cxd4 {[%clk 0:02:49.6]} 6... Nc6 {[%clk 0:03:01.6]} 7.
Nf3 {[%clk 0:02:46.4]} 7... Bb4+ {[%clk 0:02:57.2]} 8. Nc3 {[%clk 0:02:44.7]}
8... Nge7 {[%clk 0:02:55.3]} 9. O-O {[%clk 0:02:43.8]} 9... O-O {[%clk
0:02:54.8]} 10. Be3 {[%clk 0:02:41.1]} 10... d5 {[%clk 0:02:54.2]} 11. e5 {[%clk
0:02:40.2]} 11... Rc8 {[%clk 0:02:54.2]} 12. Ng5 {[%clk 0:02:36.2]} 12... h6
{[%clk 0:02:50.1]} 13. Nh7 {[%clk 0:02:35.3]} 13... Re8 {[%clk 0:02:48.4]} 14.
Qh5 {[%clk 0:02:28.7]} 14... Nf5 {[%clk 0:02:29.8]} 15. Bxf5 {[%clk 0:02:13.9]}
15... exf5 {[%clk 0:02:30.7]} 16. Bxh6 {[%clk 0:02:07.6]} 16... Re6 {[%clk
0:01:59.2]} 17. Bg5 {[%clk 0:02:02]} 17... Qe8 {[%clk 0:01:52.6]} 18. Nxd5
{[%clk 0:01:38.2]} 18... f6 {[%clk 0:01:33]} 19. Nhxf6+ {[%clk 0:01:19.5]} 19...
gxf6 {[%clk 0:01:32.9]} 20. Nxf6+ {[%clk 0:01:03.9]} 20... Rxf6 {[%clk
0:01:32.8]} 21. Qxe8+ {[%clk 0:01:03.2]} 21... Rxe8 {[%clk 0:01:31.4]} 22. Bxf6
{[%clk 0:01:02.2]} 22... Nxd4 {[%clk 0:01:31.6]} 23. Rfd1 {[%clk 0:00:55.1]}
23... Ne2+ {[%clk 0:01:29.3]} 24. Kh1 {[%clk 0:00:48]} 24... Nf4 {[%clk
0:01:29]} 25. f3 {[%clk 0:00:47.8]} 25... Bd5 {[%clk 0:00:49.8]} 26. Rac1 {[%clk
0:00:31.6]} 26... Bc5 {[%clk 0:00:47.9]} 27. Bg5 {[%clk 0:00:26.3]} 27... Ne6
{[%clk 0:00:46.4]} 28. Rxd5 {[%clk 0:00:25.2]} 28... Nxg5 {[%clk 0:00:46.6]} 29.
f4 {[%clk 0:00:20.2]} 29... Ne4 {[%clk 0:00:46.4]} 30. h3 {[%clk 0:00:19.6]}
30... Ng3+ {[%clk 0:00:40.4]} 31. Kh2 {[%clk 0:00:18.3]} 31... Ne2 {[%clk
0:00:41.1]} 32. Rf1 {[%clk 0:00:15.5]} 32... Be3 {[%clk 0:00:37.7]} 33. g3
{[%clk 0:00:12.9]} 33... Bc5 {[%clk 0:00:33.5]} 34. Rfd1 {[%clk 0:00:10.7]}
34... Kf7 {[%clk 0:00:24.5]} 35. R1d2 {[%clk 0:00:10.3]} 35... Nc1 {[%clk
0:00:21.9]} 36. Rd7+ {[%clk 0:00:08.7]} 36... Ke6 {[%clk 0:00:18.6]} 37. a3
{[%clk 0:00:04.8]} 37... Nb3 {[%clk 0:00:18]} 38. R2d5 {[%clk 0:00:04.3]} 38...
Rc8 {[%clk 0:00:15.5]} 39. h4 {[%clk 0:00:04.2]} 39... Be7 {[%clk 0:00:15.7]}
40. h5 {[%clk 0:00:03.8]} 40... Rc2+ {[%clk 0:00:16.2]} 41. Kh3 {[%clk
0:00:03.9]} 41... Rc1 {[%clk 0:00:17.1]} 42. Rxe7+ {[%clk 0:00:01.9]} 42... Kxe7
{[%clk 0:00:15.5]} 43. Rd6 {[%clk 0:00:02.1]} 43... Rh1+ {[%clk 0:00:15.9]} 44.
Kg2 {[%clk 0:00:02.3]} 44... Rxh5 {[%clk 0:00:15.2]} 45. Rf6 {[%clk 0:00:03.1]}
45... Nc5 {[%clk 0:00:14.4]} 46. g4 {[%clk 0:00:03.7]} 46... fxg4 {[%clk
0:00:14.3]} 47. Kg3 {[%clk 0:00:03.8]} 47... Ne4+ {[%clk 0:00:14.1]} 48. Kxg4
{[%clk 0:00:04.3]} 48... Rh2 {[%clk 0:00:13.3]} 49. Rg6 {[%clk 0:00:03.8]} 49...
Rxb2 {[%clk 0:00:12.9]} 50. Kf5 {[%clk 0:00:03.9]} 50... Nc5 {[%clk 0:00:12.6]}
51. Rg7+ {[%clk 0:00:04]} 51... Kf8 {[%clk 0:00:13.2]} 52. Rxa7 {[%clk
0:00:04.3]} 52... Rb3 {[%clk 0:00:12.8]} 53. Kf6 {[%clk 0:00:04.3]} 53... Rf3
{[%clk 0:00:11.4]} 54. Ra8# {[%clk 0:00:03.9]} 1-0